{"text_format":"2","workbook":"xlsx","n_sheets":10,"sheets":["Összesítő","Tagi_1 összesítő","Tagi_1 részletező","Tagi_2 Összesítő","Tagi_2 részletező","Tagi_3 Összesítő","Tagi_3 Részletező","Tagi_4 Összesítő","Tagi_4 Részletező","segédlap"],"not_rendered":{"charts":0,"images":0,"macros":0,"external_links":0,"defined_names":5,"comments":0,"pivot_tables":0},"unopened":[],"bounds":{"document_bytes":16777216,"sheet_cells":100000,"run_cost":"one","rows_first":2000,"rows_last":500,"rows_between":2000,"halvings":0,"cell_chars":16384,"cell_head_chars":4096},"cells_cut":0,"cells_raw":0,"read":"whole","date_system":"1900"}

{"sheet":"Összesítő","index":0,"n_rows":81,"n_cols":5,"rows_kept":81,"cut":false,"hidden":false,"merged":[[85,5,85,6],[86,5,86,6],[87,4,88,6],[27,0,27,3],[68,0,68,1],[43,0,43,2],[78,3,78,4],[79,3,79,4],[12,0,12,1],[13,0,13,1],[14,0,14,1],[11,0,11,1],[16,0,16,4],[3,1,3,3],[4,1,4,3],[8,1,8,3],[10,0,10,2],[0,0,0,4],[1,0,1,4],[7,1,7,3],[5,1,5,3],[6,1,6,3]]}
["Költségterv "]
["PROJEKT ÖSSZESÍTŐ"]
[]
["Pályázati azonosítószám:","2020-3.1.X-ZFR-XXX-2020-000XX/2021-2.1.X-XX"]
["Kötelezettségvállalási azonosító:","Z….. (tagok sorrendjében egymás után)"]
["Kedvezményezett neve:","< Tag 1 - (konzorciumvezető)>"]
[null,"<Tag2>"]
[null,"<Tag3>"]
[null,"<Tag4>"]
[]
["I. Források"]
["1. Saját forrás összesen (Ft):",null,{"$f":"SUM('Tagi_1 összesítő'!C9,'Tagi_2 Összesítő'!C9,'Tagi_3 Összesítő'!C9,'Tagi_4 Összesítő'!C9)","v":0}]
["2. Igényelt támogatás összesen (Ft):",null,{"$f":"SUM('Tagi_1 összesítő'!C10,'Tagi_2 Összesítő'!C10,'Tagi_3 Összesítő'!C10,'Tagi_4 Összesítő'!C10)","v":0}]
["3. Projekt elszámolható összköltsége összesen (Ft):",null,{"$f":"SUM('Tagi_1 összesítő'!C11,'Tagi_2 Összesítő'!C11,'Tagi_3 Összesítő'!C11,'Tagi_4 Összesítő'!C11)","v":0}]
["Átlagos támogatási intenzitás (%):",null,{"$f":"C13/C14","v":{"$error":"#DIV/0!"}}]
[]
["II. Állami támogatási kategórinkénti összesítő"]
["Állami támogatási kategória","Támogatási összeg (Ft)","Saját forrás (Ft)","Elszámolható összköltség (Ft)","Támogatási intenzitás (%)"]
["Kutatás fejlesztési projekthez nyújtott támogatás - Alkalmazott (ipari) kutatás",{"$f":"'Tagi_1 összesítő'!B16+'Tagi_2 Összesítő'!B16+'Tagi_3 Összesítő'!B16+'Tagi_4 Összesítő'!B16","v":0},{"$f":"'Tagi_1 összesítő'!C16+'Tagi_2 Összesítő'!C16+'Tagi_3 Összesítő'!C16+'Tagi_4 Összesítő'!C16","v":0},{"$f":"'Tagi_1 összesítő'!D16+'Tagi_2 Összesítő'!D16+'Tagi_3 Összesítő'!D16+'Tagi_4 Összesítő'!D16","v":0},{"$f":"B19/D19","v":{"$error":"#DIV/0!"}}]
["Kutatás fejlesztési projekthez nyújtott támogatás - Kísérleti fejlesztés",{"$f":"'Tagi_1 összesítő'!B17+'Tagi_2 Összesítő'!B17+'Tagi_3 Összesítő'!B17+'Tagi_4 Összesítő'!B17","v":0},{"$f":"'Tagi_1 összesítő'!C17+'Tagi_2 Összesítő'!C17+'Tagi_3 Összesítő'!C17+'Tagi_4 Összesítő'!C17","v":0},{"$f":"'Tagi_1 összesítő'!D17+'Tagi_2 Összesítő'!D17+'Tagi_3 Összesítő'!D17+'Tagi_4 Összesítő'!D17","v":0},{"$f":"B20/D20","v":{"$error":"#DIV/0!"}}]
["Megújuló energia termeléséhez nyújtott beruházási támogatás",{"$f":"'Tagi_1 összesítő'!B18+'Tagi_2 Összesítő'!B18+'Tagi_3 Összesítő'!B18+'Tagi_4 Összesítő'!B18","v":0},{"$f":"'Tagi_1 összesítő'!C18+'Tagi_2 Összesítő'!C18+'Tagi_3 Összesítő'!C18+'Tagi_4 Összesítő'!C18","v":0},{"$f":"'Tagi_1 összesítő'!D18+'Tagi_2 Összesítő'!D18+'Tagi_3 Összesítő'!D18+'Tagi_4 Összesítő'!D18","v":0},{"$error":"#DIV/0!"}]
["Helyi infrastruktúra fejlesztéséhez nyújtott beruházási támogatás ",{"$f":"'Tagi_1 összesítő'!B19+'Tagi_2 Összesítő'!B19+'Tagi_3 Összesítő'!B19+'Tagi_4 Összesítő'!B19","v":0},{"$f":"'Tagi_1 összesítő'!C19+'Tagi_2 Összesítő'!C19+'Tagi_3 Összesítő'!C19+'Tagi_4 Összesítő'!C19","v":0},{"$f":"'Tagi_1 összesítő'!D19+'Tagi_2 Összesítő'!D19+'Tagi_3 Összesítő'!D19+'Tagi_4 Összesítő'!D19","v":0},{"$error":"#DIV/0!"}]
["Csekély összegű (de minimis)",{"$f":"'Tagi_1 összesítő'!B20+'Tagi_2 Összesítő'!B20+'Tagi_3 Összesítő'!B20+'Tagi_4 Összesítő'!B20","v":0},{"$f":"'Tagi_1 összesítő'!C20+'Tagi_2 Összesítő'!C20+'Tagi_3 Összesítő'!C20+'Tagi_4 Összesítő'!C20","v":0},{"$f":"'Tagi_1 összesítő'!D20+'Tagi_2 Összesítő'!D20+'Tagi_3 Összesítő'!D20+'Tagi_4 Összesítő'!D20","v":0},{"$error":"#DIV/0!"}]
["Nem állami támogatás",{"$f":"'Tagi_1 összesítő'!B21+'Tagi_2 Összesítő'!B21+'Tagi_3 Összesítő'!B21+'Tagi_4 Összesítő'!B21","v":0},{"$f":"'Tagi_1 összesítő'!C21+'Tagi_2 Összesítő'!C21+'Tagi_3 Összesítő'!C21+'Tagi_4 Összesítő'!C21","v":0},{"$f":"'Tagi_1 összesítő'!D21+'Tagi_2 Összesítő'!D21+'Tagi_3 Összesítő'!D21+'Tagi_4 Összesítő'!D21","v":0},{"$error":"#DIV/0!"}]
["Kutatás-fejlesztési projekthez nyújtott támogatás-Megvalósíthatósági tanulmány készítése",{"$f":"'Tagi_1 összesítő'!B22+'Tagi_2 Összesítő'!B22+'Tagi_3 Összesítő'!B22+'Tagi_4 Összesítő'!B22","v":0},{"$f":"'Tagi_1 összesítő'!C22+'Tagi_2 Összesítő'!C22+'Tagi_3 Összesítő'!C22+'Tagi_4 Összesítő'!C22","v":0},{"$f":"'Tagi_1 összesítő'!D22+'Tagi_2 Összesítő'!D22+'Tagi_3 Összesítő'!D22+'Tagi_4 Összesítő'!D22","v":0},{"$error":"#DIV/0!"}]
["Összesen:",{"$f":"SUM(B19:B25)","v":0},{"$f":"SUM(C19:C25)","v":0},{"$f":"SUM(D19:D25)","v":0},{"$error":"#DIV/0!"}]
[]
["II. Költségkategóriánkénti összesítő"]
["Költség kategória","Támogatási összeg (Ft)","Saját forrás (Ft)","Elszámolható összköltség (Ft)"]
["11. Immateriális javak",{"$f":"'Tagi_1 összesítő'!B28+'Tagi_2 Összesítő'!B28+'Tagi_3 Összesítő'!B28+'Tagi_4 Összesítő'!B28","v":0},{"$f":"'Tagi_1 összesítő'!C28+'Tagi_2 Összesítő'!C28+'Tagi_3 Összesítő'!C28+'Tagi_4 Összesítő'!C28","v":0},{"$f":"'Tagi_1 összesítő'!D28+'Tagi_2 Összesítő'!D28+'Tagi_3 Összesítő'!D28+'Tagi_4 Összesítő'!D28","v":0}]
["13. Műszaki berendezések, gépek",{"$f":"'Tagi_1 összesítő'!B29+'Tagi_2 Összesítő'!B29+'Tagi_3 Összesítő'!B29+'Tagi_4 Összesítő'!B29","v":0},{"$f":"'Tagi_1 összesítő'!C29+'Tagi_2 Összesítő'!C29+'Tagi_3 Összesítő'!C29+'Tagi_4 Összesítő'!C29","v":0},{"$f":"'Tagi_1 összesítő'!D29+'Tagi_2 Összesítő'!D29+'Tagi_3 Összesítő'!D29+'Tagi_4 Összesítő'!D29","v":0}]
["14. Egyéb berendezések, felszerelések",{"$f":"'Tagi_1 összesítő'!B30+'Tagi_2 Összesítő'!B30+'Tagi_3 Összesítő'!B30+'Tagi_4 Összesítő'!B30","v":0},{"$f":"'Tagi_1 összesítő'!C30+'Tagi_2 Összesítő'!C30+'Tagi_3 Összesítő'!C30+'Tagi_4 Összesítő'!C30","v":0},{"$f":"'Tagi_1 összesítő'!D30+'Tagi_2 Összesítő'!D30+'Tagi_3 Összesítő'!D30+'Tagi_4 Összesítő'!D30","v":0}]
["16. Beruházások, felújítások",{"$f":"'Tagi_1 összesítő'!B31+'Tagi_2 Összesítő'!B31+'Tagi_3 Összesítő'!B31+'Tagi_4 Összesítő'!B31","v":0},{"$f":"'Tagi_1 összesítő'!C31+'Tagi_2 Összesítő'!C31+'Tagi_3 Összesítő'!C31+'Tagi_4 Összesítő'!C31","v":0},{"$f":"'Tagi_1 összesítő'!D31+'Tagi_2 Összesítő'!D31+'Tagi_3 Összesítő'!D31+'Tagi_4 Összesítő'!D31","v":0}]
["51. Anyagköltség",{"$f":"'Tagi_1 összesítő'!B32+'Tagi_2 Összesítő'!B32+'Tagi_3 Összesítő'!B32+'Tagi_4 Összesítő'!B32","v":0},{"$f":"'Tagi_1 összesítő'!C32+'Tagi_2 Összesítő'!C32+'Tagi_3 Összesítő'!C32+'Tagi_4 Összesítő'!C32","v":0},{"$f":"'Tagi_1 összesítő'!D32+'Tagi_2 Összesítő'!D32+'Tagi_3 Összesítő'!D32+'Tagi_4 Összesítő'!D32","v":0}]
["52. Igénybe vett szolgáltatás",{"$f":"'Tagi_1 összesítő'!B33+'Tagi_2 Összesítő'!B33+'Tagi_3 Összesítő'!B33+'Tagi_4 Összesítő'!B33","v":0},{"$f":"'Tagi_1 összesítő'!C33+'Tagi_2 Összesítő'!C33+'Tagi_3 Összesítő'!C33+'Tagi_4 Összesítő'!C33","v":0},{"$f":"'Tagi_1 összesítő'!D33+'Tagi_2 Összesítő'!D33+'Tagi_3 Összesítő'!D33+'Tagi_4 Összesítő'!D33","v":0}]
["53. Egyéb szolgáltatás",{"$f":"'Tagi_1 összesítő'!B34+'Tagi_2 Összesítő'!B34+'Tagi_3 Összesítő'!B34+'Tagi_4 Összesítő'!B34","v":0},{"$f":"'Tagi_1 összesítő'!C34+'Tagi_2 Összesítő'!C34+'Tagi_3 Összesítő'!C34+'Tagi_4 Összesítő'!C34","v":0},{"$f":"'Tagi_1 összesítő'!D34+'Tagi_2 Összesítő'!D34+'Tagi_3 Összesítő'!D34+'Tagi_4 Összesítő'!D34","v":0}]
["54. Bérköltség",{"$f":"'Tagi_1 összesítő'!B35+'Tagi_2 Összesítő'!B35+'Tagi_3 Összesítő'!B35+'Tagi_4 Összesítő'!B35","v":0},{"$f":"'Tagi_1 összesítő'!C35+'Tagi_2 Összesítő'!C35+'Tagi_3 Összesítő'!C35+'Tagi_4 Összesítő'!C35","v":0},{"$f":"'Tagi_1 összesítő'!D35+'Tagi_2 Összesítő'!D35+'Tagi_3 Összesítő'!D35+'Tagi_4 Összesítő'!D35","v":0}]
["55. Személyi jellegű egyéb kifizetések",{"$f":"'Tagi_1 összesítő'!B36+'Tagi_2 Összesítő'!B36+'Tagi_3 Összesítő'!B36+'Tagi_4 Összesítő'!B36","v":0},{"$f":"'Tagi_1 összesítő'!C36+'Tagi_2 Összesítő'!C36+'Tagi_3 Összesítő'!C36+'Tagi_4 Összesítő'!C36","v":0},{"$f":"'Tagi_1 összesítő'!D36+'Tagi_2 Összesítő'!D36+'Tagi_3 Összesítő'!D36+'Tagi_4 Összesítő'!D36","v":0}]
["56. Bérjárulék",{"$f":"'Tagi_1 összesítő'!B37+'Tagi_2 Összesítő'!B37+'Tagi_3 Összesítő'!B37+'Tagi_4 Összesítő'!B37","v":0},{"$f":"'Tagi_1 összesítő'!C37+'Tagi_2 Összesítő'!C37+'Tagi_3 Összesítő'!C37+'Tagi_4 Összesítő'!C37","v":0},{"$f":"'Tagi_1 összesítő'!D37+'Tagi_2 Összesítő'!D37+'Tagi_3 Összesítő'!D37+'Tagi_4 Összesítő'!D37","v":0}]
["Felhalmozási összesen:",{"$f":"SUM(B30:B33)","v":0},{"$f":"SUM(C30:C33)","v":0},0]
[" Működési összesen:",{"$f":"SUM(B34:B39)","v":0},{"$f":"SUM(C34:C39)","v":0},0]
["Felhalmozási és Működési Összesen:",{"$f":"SUM(B40:B41)","v":0},{"$f":"SUM(C40:C41)","v":0},0]
[]
["III. Támogatás és kifizetés ütemezés"]
["Mérföldkő száma és dátuma","A mérföldkőre elszámolni tervezett támogatás összege (Ft)","A mérföldkőre tervezett igényelt előleg összege (Ft)"]
["1. 20..év.hó.nap",{"$f":"'Tagi_1 összesítő'!B44+'Tagi_2 Összesítő'!B44+'Tagi_3 Összesítő'!B44+'Tagi_4 Összesítő'!B44","v":0},{"$f":"'Tagi_1 összesítő'!C44+'Tagi_2 Összesítő'!C44+'Tagi_3 Összesítő'!C44+'Tagi_4 Összesítő'!C44","v":0}]
["ebből működési",{"$f":"'Tagi_1 összesítő'!B45+'Tagi_2 Összesítő'!B45+'Tagi_3 Összesítő'!B45+'Tagi_4 Összesítő'!B45","v":0},{"$f":"'Tagi_1 összesítő'!C45+'Tagi_2 Összesítő'!C45+'Tagi_3 Összesítő'!C45+'Tagi_4 Összesítő'!C45","v":0}]
["ebből felhalmozási",{"$f":"'Tagi_1 összesítő'!B46+'Tagi_2 Összesítő'!B46+'Tagi_3 Összesítő'!B46+'Tagi_4 Összesítő'!B46","v":0},{"$f":"'Tagi_1 összesítő'!C46+'Tagi_2 Összesítő'!C46+'Tagi_3 Összesítő'!C46+'Tagi_4 Összesítő'!C46","v":0}]
["2. 20..év.hó.nap",{"$f":"'Tagi_1 összesítő'!B47+'Tagi_2 Összesítő'!B47+'Tagi_3 Összesítő'!B47+'Tagi_4 Összesítő'!B47","v":0},{"$f":"'Tagi_1 összesítő'!C47+'Tagi_2 Összesítő'!C47+'Tagi_3 Összesítő'!C47+'Tagi_4 Összesítő'!C47","v":0}]
["ebből működési",{"$f":"'Tagi_1 összesítő'!B48+'Tagi_2 Összesítő'!B48+'Tagi_3 Összesítő'!B48+'Tagi_4 Összesítő'!B48","v":0},{"$f":"'Tagi_1 összesítő'!C48+'Tagi_2 Összesítő'!C48+'Tagi_3 Összesítő'!C48+'Tagi_4 Összesítő'!C48","v":0}]
["ebből felhalmozási",{"$f":"'Tagi_1 összesítő'!B49+'Tagi_2 Összesítő'!B49+'Tagi_3 Összesítő'!B49+'Tagi_4 Összesítő'!B49","v":0},{"$f":"'Tagi_1 összesítő'!C49+'Tagi_2 Összesítő'!C49+'Tagi_3 Összesítő'!C49+'Tagi_4 Összesítő'!C49","v":0}]
["3. 20..év.hó.nap",{"$f":"'Tagi_1 összesítő'!B50+'Tagi_2 Összesítő'!B50+'Tagi_3 Összesítő'!B50+'Tagi_4 Összesítő'!B50","v":0},{"$f":"'Tagi_1 összesítő'!C50+'Tagi_2 Összesítő'!C50+'Tagi_3 Összesítő'!C50+'Tagi_4 Összesítő'!C50","v":0}]
["ebből működési",{"$f":"'Tagi_1 összesítő'!B51+'Tagi_2 Összesítő'!B51+'Tagi_3 Összesítő'!B51+'Tagi_4 Összesítő'!B51","v":0},{"$f":"'Tagi_1 összesítő'!C51+'Tagi_2 Összesítő'!C51+'Tagi_3 Összesítő'!C51+'Tagi_4 Összesítő'!C51","v":0}]
["ebből felhalmozási",{"$f":"'Tagi_1 összesítő'!B52+'Tagi_2 Összesítő'!B52+'Tagi_3 Összesítő'!B52+'Tagi_4 Összesítő'!B52","v":0},{"$f":"'Tagi_1 összesítő'!C52+'Tagi_2 Összesítő'!C52+'Tagi_3 Összesítő'!C52+'Tagi_4 Összesítő'!C52","v":0}]
["4. 20..év.hó.nap",{"$f":"'Tagi_1 összesítő'!B53+'Tagi_2 Összesítő'!B53+'Tagi_3 Összesítő'!B53+'Tagi_4 Összesítő'!B53","v":0},{"$f":"'Tagi_1 összesítő'!C53+'Tagi_2 Összesítő'!C53+'Tagi_3 Összesítő'!C53+'Tagi_4 Összesítő'!C53","v":0}]
["ebből működési",{"$f":"'Tagi_1 összesítő'!B54+'Tagi_2 Összesítő'!B54+'Tagi_3 Összesítő'!B54+'Tagi_4 Összesítő'!B54","v":0},{"$f":"'Tagi_1 összesítő'!C54+'Tagi_2 Összesítő'!C54+'Tagi_3 Összesítő'!C54+'Tagi_4 Összesítő'!C54","v":0}]
["ebből felhalmozási",{"$f":"'Tagi_1 összesítő'!B55+'Tagi_2 Összesítő'!B55+'Tagi_3 Összesítő'!B55+'Tagi_4 Összesítő'!B55","v":0},{"$f":"'Tagi_1 összesítő'!C55+'Tagi_2 Összesítő'!C55+'Tagi_3 Összesítő'!C55+'Tagi_4 Összesítő'!C55","v":0}]
["5. 20..év.hó.nap",{"$f":"'Tagi_1 összesítő'!B56+'Tagi_2 Összesítő'!B56+'Tagi_3 Összesítő'!B56+'Tagi_4 Összesítő'!B56","v":0},{"$f":"'Tagi_1 összesítő'!C56+'Tagi_2 Összesítő'!C56+'Tagi_3 Összesítő'!C56+'Tagi_4 Összesítő'!C56","v":0}]
["ebből működési",{"$f":"'Tagi_1 összesítő'!B57+'Tagi_2 Összesítő'!B57+'Tagi_3 Összesítő'!B57+'Tagi_4 Összesítő'!B57","v":0},{"$f":"'Tagi_1 összesítő'!C57+'Tagi_2 Összesítő'!C57+'Tagi_3 Összesítő'!C57+'Tagi_4 Összesítő'!C57","v":0}]
["ebből felhalmozási",{"$f":"'Tagi_1 összesítő'!B58+'Tagi_2 Összesítő'!B58+'Tagi_3 Összesítő'!B58+'Tagi_4 Összesítő'!B58","v":0},{"$f":"'Tagi_1 összesítő'!C58+'Tagi_2 Összesítő'!C58+'Tagi_3 Összesítő'!C58+'Tagi_4 Összesítő'!C58","v":0}]
["6. 20..év.hó.nap",{"$f":"'Tagi_1 összesítő'!B59+'Tagi_2 Összesítő'!B59+'Tagi_3 Összesítő'!B59+'Tagi_4 Összesítő'!B59","v":0},{"$f":"'Tagi_1 összesítő'!C59+'Tagi_2 Összesítő'!C59+'Tagi_3 Összesítő'!C59+'Tagi_4 Összesítő'!C59","v":0}]
["ebből működési",{"$f":"'Tagi_1 összesítő'!B60+'Tagi_2 Összesítő'!B60+'Tagi_3 Összesítő'!B60+'Tagi_4 Összesítő'!B60","v":0},{"$f":"'Tagi_1 összesítő'!C60+'Tagi_2 Összesítő'!C60+'Tagi_3 Összesítő'!C60+'Tagi_4 Összesítő'!C60","v":0}]
["ebből felhalmozási",{"$f":"'Tagi_1 összesítő'!B61+'Tagi_2 Összesítő'!B61+'Tagi_3 Összesítő'!B61+'Tagi_4 Összesítő'!B61","v":0},{"$f":"'Tagi_1 összesítő'!C61+'Tagi_2 Összesítő'!C61+'Tagi_3 Összesítő'!C61+'Tagi_4 Összesítő'!C61","v":0}]
["Összesen:",{"$f":"'Tagi_1 összesítő'!B62+'Tagi_2 Összesítő'!B62+'Tagi_3 Összesítő'!B62+'Tagi_4 Összesítő'!B62","v":0},{"$f":"'Tagi_1 összesítő'!C62+'Tagi_2 Összesítő'!C62+'Tagi_3 Összesítő'!C62+'Tagi_4 Összesítő'!C62","v":0}]
["Ebből összesen"]
["1. államháztartáson belül"]
["2. államháztartáson kívül"]
["Összesen:",{"$f":"B66+B67","v":0},{"$f":"C66+C67","v":0}]
["Tervezett kiadások ütemezése a tárgyévet követő éve(ek)ben (Ft)"]
[2021,0]
[2022,{"$f":"'Tagi_1 összesítő'!B66+'Tagi_2 Összesítő'!B66+'Tagi_3 Összesítő'!B66+'Tagi_4 Összesítő'!B66","v":0}]
[2023,{"$f":"'Tagi_1 összesítő'!B67+'Tagi_2 Összesítő'!B67+'Tagi_3 Összesítő'!B67+'Tagi_4 Összesítő'!B67","v":0}]
[2024,{"$f":"'Tagi_1 összesítő'!B68+'Tagi_2 Összesítő'!B68+'Tagi_3 Összesítő'!B68+'Tagi_4 Összesítő'!B68","v":0}]
[2025,{"$f":"'Tagi_1 összesítő'!B69+'Tagi_2 Összesítő'!B69+'Tagi_3 Összesítő'!B69+'Tagi_4 Összesítő'!B69","v":0}]
[]
[]
[]
[]
["Dátum: 20 .  hó   nap",null,"Cégszerű aláírás:","……………………………."]
[null,null,null,"<Név>"]
[null,null,null,"P.H."]

{"sheet":"Tagi_1 összesítő","index":1,"n_rows":75,"n_cols":5,"rows_kept":75,"cut":false,"hidden":false,"merged":[[73,3,73,4],[41,0,41,2],[63,0,63,1],[73,5,73,6],[3,1,3,3],[5,1,5,3],[4,1,4,3],[0,0,0,4],[72,5,72,6],[25,0,25,3],[7,0,7,2],[8,0,8,1],[9,0,9,1],[10,0,10,1],[11,0,11,1],[13,0,13,4],[1,0,1,4],[72,3,72,4]]}
["Költségterv "]
["TAGI ÖSSZESÍTŐ"]
[]
["Szerződés száma:",{"$f":"Összesítő!B4","v":"2020-3.1.X-ZFR-XXX-2020-000XX/2021-2.1.X-XX"}]
["Kötelezettségvállalási azonosító:","Z….."]
["Kedvezményezett neve:",{"$f":"Összesítő!B6","v":"< Tag 1 - (konzorciumvezető)>"}]
[]
["I. Források "]
["1. Saját forrás (Ft):",null,{"$f":"SUM(C16:C22)","v":0}]
["2. Igényelt támogatás (Ft):",null,{"$f":"SUM(B16:B22)","v":0}]
["3. Elszámolható összköltség (Ft):",null,{"$f":"SUM(D16:D22)","v":0}]
["Átlagos támogatási intenzitás (%):",null,{"$f":"C10/C11","v":{"$error":"#DIV/0!"}}]
[]
["II. Állami támogatási kategórinkénti összesítő"]
["Állami támogatási kategória","Támogatási összeg (Ft)","Saját forrás (Ft)","Elszámolható összköltség (Ft)","Támogatási intenzitás (%)"]
["Kutatás fejlesztési projekthez nyújtott támogatás - Alkalmazott (ipari) kutatás",{"$f":"SUMIF('Tagi_1 részletező'!$C$10:$C$17,'Tagi_1 összesítő'!A16,'Tagi_1 részletező'!$D$10:$D$17)","v":0},{"$f":"SUMIF('Tagi_1 részletező'!$C$10:$C$17,'Tagi_1 összesítő'!A16,'Tagi_1 részletező'!$E$10:$E$17)","v":0},{"$f":"SUM(B16:C16)","v":0},{"$f":"B16/D16","v":{"$error":"#DIV/0!"}}]
["Kutatás fejlesztési projekthez nyújtott támogatás - Kísérleti fejlesztés",{"$f":"SUMIF('Tagi_1 részletező'!$C$10:$C$17,'Tagi_1 összesítő'!A17,'Tagi_1 részletező'!$D$10:$D$17)","v":0},{"$f":"SUMIF('Tagi_1 részletező'!$C$10:$C$17,'Tagi_1 összesítő'!B17,'Tagi_1 részletező'!$D$10:$D$17)","v":0},{"$f":"SUM(B17:C17)","v":0},{"$f":"B17/D17","v":{"$error":"#DIV/0!"}}]
["Megújuló energia termeléséhez nyújtott beruházási támogatás",{"$f":"SUMIF('Tagi_1 részletező'!$C$10:$C$17,'Tagi_1 összesítő'!A18,'Tagi_1 részletező'!$D$10:$D$17)","v":0},{"$f":"SUMIF('Tagi_1 részletező'!$C$10:$C$17,'Tagi_1 összesítő'!B18,'Tagi_1 részletező'!$D$10:$D$17)","v":0},{"$f":"SUM(B18:C18)","v":0},{"$error":"#DIV/0!"}]
["Helyi infrastruktúra fejlesztéséhez nyújtott beruházási támogatás ",{"$f":"SUMIF('Tagi_1 részletező'!$C$10:$C$17,'Tagi_1 összesítő'!A19,'Tagi_1 részletező'!$D$10:$D$17)","v":0},{"$f":"SUMIF('Tagi_1 részletező'!$C$10:$C$17,'Tagi_1 összesítő'!B19,'Tagi_1 részletező'!$D$10:$D$17)","v":0},0,{"$error":"#DIV/0!"}]
["Csekély összegű (de minimis)",{"$f":"SUMIF('Tagi_1 részletező'!$C$10:$C$17,'Tagi_1 összesítő'!A20,'Tagi_1 részletező'!$D$10:$D$17)","v":0},{"$f":"SUMIF('Tagi_1 részletező'!$C$10:$C$17,'Tagi_1 összesítő'!B20,'Tagi_1 részletező'!$D$10:$D$17)","v":0},{"$f":"SUM(B20:C20)","v":0},{"$error":"#DIV/0!"}]
["Nem állami támogatás",{"$f":"SUMIF('Tagi_1 részletező'!$C$10:$C$17,'Tagi_1 összesítő'!A21,'Tagi_1 részletező'!$D$10:$D$17)","v":0},{"$f":"SUMIF('Tagi_1 részletező'!$C$10:$C$17,'Tagi_1 összesítő'!B21,'Tagi_1 részletező'!$D$10:$D$17)","v":0},0,{"$error":"#DIV/0!"}]
["Kutatás-fejlesztési projekthez nyújtott támogatás-Megvalósíthatósági tanulmány készítése",{"$f":"SUMIF('Tagi_1 részletező'!$C$10:$C$17,'Tagi_1 összesítő'!A22,'Tagi_1 részletező'!$D$10:$D$17)","v":0},{"$f":"SUMIF('Tagi_1 részletező'!$C$10:$C$17,'Tagi_1 összesítő'!B22,'Tagi_1 részletező'!$D$10:$D$17)","v":0},0,{"$error":"#DIV/0!"}]
["Összesen:",{"$f":"SUM(B16:B22)","v":0},{"$f":"SUM(C16:C22)","v":0},0,{"$error":"#DIV/0!"}]
[]
[]
["II. Költségkategóriánkénti összesítő"]
["Költség kategória","Támogatási összeg (Ft)","Saját forrás (Ft)","Elszámolható összköltség (Ft)"]
["11. Immateriális javak",{"$f":"SUMIF('Tagi_1 részletező'!$B$10:$B$17,'Tagi_1 összesítő'!A28,'Tagi_1 részletező'!$D$10:$D$17)","v":0},{"$f":"SUMIF('Tagi_1 részletező'!$B$10:$B$17,'Tagi_1 összesítő'!A28,'Tagi_1 részletező'!$E$10:$E$17)","v":0},{"$f":"SUM(B28:C28)","v":0}]
["13. Műszaki berendezések, gépek",{"$f":"SUMIF('Tagi_1 részletező'!$B$10:$B$17,'Tagi_1 összesítő'!A29,'Tagi_1 részletező'!$D$10:$D$17)","v":0},{"$f":"SUMIF('Tagi_1 részletező'!$B$10:$B$17,'Tagi_1 összesítő'!A29,'Tagi_1 részletező'!$E$10:$E$17)","v":0},{"$f":"SUM(B29:C29)","v":0}]
["14. Egyéb berendezések, felszerelések",{"$f":"SUMIF('Tagi_1 részletező'!$B$10:$B$17,'Tagi_1 összesítő'!A30,'Tagi_1 részletező'!$D$10:$D$17)","v":0},{"$f":"SUMIF('Tagi_1 részletező'!$B$10:$B$17,'Tagi_1 összesítő'!A30,'Tagi_1 részletező'!$E$10:$E$17)","v":0},0]
["16. Beruházások, felújítások",{"$f":"SUMIF('Tagi_1 részletező'!$B$10:$B$17,'Tagi_1 összesítő'!A31,'Tagi_1 részletező'!$D$10:$D$17)","v":0},{"$f":"SUMIF('Tagi_1 részletező'!$B$10:$B$17,'Tagi_1 összesítő'!A31,'Tagi_1 részletező'!$E$10:$E$17)","v":0},0]
["51. Anyagköltség",{"$f":"SUMIF('Tagi_1 részletező'!$B$10:$B$17,'Tagi_1 összesítő'!A32,'Tagi_1 részletező'!$D$10:$D$17)","v":0},{"$f":"SUMIF('Tagi_1 részletező'!$B$10:$B$17,'Tagi_1 összesítő'!A32,'Tagi_1 részletező'!$E$10:$E$17)","v":0},0]
["52. Igénybe vett szolgáltatás",{"$f":"SUMIF('Tagi_1 részletező'!$B$10:$B$17,'Tagi_1 összesítő'!A33,'Tagi_1 részletező'!$D$10:$D$17)","v":0},{"$f":"SUMIF('Tagi_1 részletező'!$B$10:$B$17,'Tagi_1 összesítő'!A33,'Tagi_1 részletező'!$E$10:$E$17)","v":0},0]
["53. Egyéb szolgáltatás",{"$f":"SUMIF('Tagi_1 részletező'!$B$10:$B$17,'Tagi_1 összesítő'!A34,'Tagi_1 részletező'!$D$10:$D$17)","v":0},{"$f":"SUMIF('Tagi_1 részletező'!$B$10:$B$17,'Tagi_1 összesítő'!A34,'Tagi_1 részletező'!$E$10:$E$17)","v":0},0]
["54. Bérköltség",{"$f":"SUMIF('Tagi_1 részletező'!$B$10:$B$17,'Tagi_1 összesítő'!A35,'Tagi_1 részletező'!$D$10:$D$17)","v":0},{"$f":"SUMIF('Tagi_1 részletező'!$B$10:$B$17,'Tagi_1 összesítő'!A35,'Tagi_1 részletező'!$E$10:$E$17)","v":0},0]
["55. Személyi jellegű egyéb kifizetések",{"$f":"SUMIF('Tagi_1 részletező'!$B$10:$B$17,'Tagi_1 összesítő'!A36,'Tagi_1 részletező'!$D$10:$D$17)","v":0},{"$f":"SUMIF('Tagi_1 részletező'!$B$10:$B$17,'Tagi_1 összesítő'!A36,'Tagi_1 részletező'!$E$10:$E$17)","v":0},0]
["56. Bérjárulék",{"$f":"SUMIF('Tagi_1 részletező'!$B$10:$B$17,'Tagi_1 összesítő'!A37,'Tagi_1 részletező'!$D$10:$D$17)","v":0},{"$f":"SUMIF('Tagi_1 részletező'!$B$10:$B$17,'Tagi_1 összesítő'!A37,'Tagi_1 részletező'!$E$10:$E$17)","v":0},0]
["Felhalmozási összesen:",{"$f":"SUM(B28:B31)","v":0},{"$f":"SUM(C28:C31)","v":0},{"$f":"SUM(D28:D31)","v":0}]
[" Működési összesen",{"$f":"SUM(B32:B37)","v":0},{"$f":"SUM(C32:C37)","v":0},0]
["Felhalmozási és Működési Összesen:",{"$f":"SUM(B38:B39)","v":0},{"$f":"SUM(C38:C39)","v":0},0]
[]
["III. Támogatás és kifizetés ütemezés"]
["Mérföldkő száma és dátuma","A mérföldkőre elszámolni tervezett támogatás összege (Ft)","A mérföldkőre tervezett igényelt előleg összege (Ft)"]
["1. 20..év.hó.nap",{"$f":"B45+B46","v":0},{"$f":"C45+C46","v":0}]
["ebből működési"]
["ebből felhalmozási"]
["2. 20..év.hó.nap",{"$f":"B48+B49","v":0},{"$f":"C48+C49","v":0}]
["ebből működési"]
["ebből felhalmozási"]
["3. 20..év.hó.nap",{"$f":"B51+B52","v":0},{"$f":"C51+C52","v":0}]
["ebből működési"]
["ebből felhalmozási"]
["4. 20..év.hó.nap",{"$f":"B54+B55","v":0},{"$f":"C54+C55","v":0}]
["ebből működési"]
["ebből felhalmozási"]
["5. 20..év.hó.nap",{"$f":"B57+B58","v":0},{"$f":"C57+C58","v":0}]
["ebből működési"]
["ebből felhalmozási"]
["6. 20..év.hó.nap",{"$f":"B60+B61","v":0},{"$f":"C60+C61","v":0}]
["ebből működési"]
["ebből felhalmozási"]
["Összesen:",{"$f":"B44+B47+B50+B53+B56+B59","v":0},{"$f":"C44+C47+C50+C53+C56+C59","v":0}]
[]
["Tervezett kiadások ütemezése a tárgyévet követő éve(ek)ben (Ft)"]
[2021]
[2022]
[2023]
[2024]
[2025]
[]
[]
[]
["Dátum: 20 .  hó   nap",null,"Cégszerű aláírás:","……………………………."]
[null,null,null,"<Név>"]
[null,null,null,"P.H."]

{"sheet":"Tagi_1 részletező","index":2,"n_rows":22,"n_cols":7,"rows_kept":22,"cut":false,"hidden":false,"merged":[[0,0,0,6],[1,0,1,6],[7,0,7,6],[20,5,20,6],[21,5,21,6],[3,1,3,3],[5,1,5,3],[4,1,4,3]]}
["Költségterv "]
["TAGI RÉSZLETES KÖLTSÉGTERV"]
[]
["Szerződés száma:",{"$f":"Összesítő!B4","v":"2020-3.1.X-ZFR-XXX-2020-000XX/2021-2.1.X-XX"}]
["Kötelezettségvállalási azonosító:","Z….."]
["Kedvezményezett neve:",{"$f":"Összesítő!B6","v":"< Tag 1 - (konzorciumvezető)>"}]
[]
["Tervezett költségek tagi szinten"]
["Tevékenység neve","Költség kategória","Állami támogatás kategória","Támogatási összeg (Ft)","Saját forrás (Ft)","Elszámolható költség (Ft)","Támogatási százalék (%)"]
[{"$nulls":5},{"$f":"D10+E10","v":0},{"$f":"D10/F10","v":{"$error":"#DIV/0!"}}]
[{"$nulls":5},{"$f":"D11+E11","v":0},{"$f":"D11/F11","v":{"$error":"#DIV/0!"}}]
[{"$nulls":5},0,{"$error":"#DIV/0!"}]
[{"$nulls":5},0,{"$error":"#DIV/0!"}]
[{"$nulls":5},0,{"$error":"#DIV/0!"}]
[{"$nulls":5},0,{"$error":"#DIV/0!"}]
[{"$nulls":5},0,{"$error":"#DIV/0!"}]
[{"$nulls":5},0,{"$error":"#DIV/0!"}]
[null,null,"Összesen:",{"$f":"SUM(D10:D17)","v":0},{"$f":"SUM(E10:E17)","v":0},{"$f":"SUM(F10:F17)","v":0},{"$f":"D18/F18","v":{"$error":"#DIV/0!"}}]
[]
[]
["Dátum:","20 .   hó"," nap","P.H.","Cégszerű aláírás:","……………………………."]
[{"$nulls":5},"<Név>"]

{"sheet":"Tagi_2 Összesítő","index":3,"n_rows":75,"n_cols":5,"rows_kept":75,"cut":false,"hidden":false,"merged":[[41,0,41,2],[0,0,0,4],[1,0,1,4],[7,0,7,2],[8,0,8,1],[9,0,9,1],[10,0,10,1],[11,0,11,1],[13,0,13,4],[25,0,25,3],[5,1,5,3],[3,1,3,3],[4,1,4,3],[63,0,63,1],[72,3,72,4],[72,5,72,6],[73,3,73,4],[73,5,73,6]]}
["Költségterv "]
["TAGI_2 ÖSSZESÍTŐ"]
[]
["Szerződés száma:",{"$f":"Összesítő!B4","v":"2020-3.1.X-ZFR-XXX-2020-000XX/2021-2.1.X-XX"}]
["Kötelezettségvállalási azonosító:","Z….."]
["Kedvezményezett neve:",{"$f":"Összesítő!B7","v":"<Tag2>"}]
[]
["I. Források "]
["1. Saját forrás (Ft):",null,{"$f":"SUM(C16:C22)","v":0}]
["2. Igényelt támogatás (Ft):",null,{"$f":"SUM(B16:B22)","v":0}]
["3. Elszámolható összköltség (Ft):",null,{"$f":"SUM(D16:D22)","v":0}]
["Átlagos támogatási intenzitás (%):",null,{"$f":"C10/C11","v":{"$error":"#DIV/0!"}}]
[]
["II. Állami támogatási kategórinkénti összesítő"]
["Állami támogatási kategória","Támogatási összeg (Ft)","Saját forrás (Ft)","Elszámolható összköltség (Ft)","Támogatási intenzitás (%)"]
["Kutatás fejlesztési projekthez nyújtott támogatás - Alkalmazott (ipari) kutatás",{"$f":"SUMIF('Tagi_2 részletező'!$C$10:$C$17,'Tagi_2 Összesítő'!A16,'Tagi_2 részletező'!$D$10:$D$17)","v":0},{"$f":"SUMIF('Tagi_2 részletező'!$C$10:$C$17,'Tagi_2 Összesítő'!A16,'Tagi_2 részletező'!$E$10:$E$17)","v":0},{"$f":"SUM(B16:C16)","v":0},{"$f":"B16/D16","v":{"$error":"#DIV/0!"}}]
["Kutatás fejlesztési projekthez nyújtott támogatás - Kísérleti fejlesztés",{"$f":"SUMIF('Tagi_2 részletező'!$C$10:$C$17,'Tagi_2 Összesítő'!A17,'Tagi_2 részletező'!$D$10:$D$17)","v":0},{"$f":"SUMIF('Tagi_2 részletező'!$C$10:$C$17,'Tagi_2 Összesítő'!A17,'Tagi_2 részletező'!$E$10:$E$17)","v":0},{"$f":"SUM(B17:C17)","v":0},{"$f":"B17/D17","v":{"$error":"#DIV/0!"}}]
["Megújuló energia termeléséhez nyújtott beruházási támogatás",{"$f":"SUMIF('Tagi_2 részletező'!$C$10:$C$17,'Tagi_2 Összesítő'!A18,'Tagi_2 részletező'!$D$10:$D$17)","v":0},{"$f":"SUMIF('Tagi_2 részletező'!$C$10:$C$17,'Tagi_2 Összesítő'!A18,'Tagi_2 részletező'!$E$10:$E$17)","v":0},{"$f":"SUM(B18:C18)","v":0},{"$error":"#DIV/0!"}]
["Helyi infrastruktúra fejlesztéséhez nyújtott beruházási támogatás ",{"$f":"SUMIF('Tagi_2 részletező'!$C$10:$C$17,'Tagi_2 Összesítő'!A19,'Tagi_2 részletező'!$D$10:$D$17)","v":0},{"$f":"SUMIF('Tagi_2 részletező'!$C$10:$C$17,'Tagi_2 Összesítő'!A19,'Tagi_2 részletező'!$E$10:$E$17)","v":0},0,{"$error":"#DIV/0!"}]
["Csekély összegű (de minimis)",{"$f":"SUMIF('Tagi_2 részletező'!$C$10:$C$17,'Tagi_2 Összesítő'!A20,'Tagi_2 részletező'!$D$10:$D$17)","v":0},{"$f":"SUMIF('Tagi_2 részletező'!$C$10:$C$17,'Tagi_2 Összesítő'!A20,'Tagi_2 részletező'!$E$10:$E$17)","v":0},0,{"$error":"#DIV/0!"}]
["Nem állami támogatás",{"$f":"SUMIF('Tagi_2 részletező'!$C$10:$C$17,'Tagi_2 Összesítő'!A21,'Tagi_2 részletező'!$D$10:$D$17)","v":0},{"$f":"SUMIF('Tagi_2 részletező'!$C$10:$C$17,'Tagi_2 Összesítő'!A21,'Tagi_2 részletező'!$E$10:$E$17)","v":0},0,{"$error":"#DIV/0!"}]
["Kutatás-fejlesztési projekthez nyújtott támogatás-Megvalósíthatósági tanulmány készítése",{"$f":"SUMIF('Tagi_2 részletező'!$C$10:$C$17,'Tagi_2 Összesítő'!A22,'Tagi_2 részletező'!$D$10:$D$17)","v":0},{"$f":"SUMIF('Tagi_2 részletező'!$C$10:$C$17,'Tagi_2 Összesítő'!A22,'Tagi_2 részletező'!$E$10:$E$17)","v":0},0,{"$error":"#DIV/0!"}]
["Összesen:",{"$f":"SUM(B16:B22)","v":0},{"$f":"SUM(C16:C22)","v":0},0,{"$error":"#DIV/0!"}]
[]
[]
["II. Költségkategóriánkénti összesítő"]
["Költség kategória","Támogatási összeg (Ft)","Saját forrás (Ft)","Elszámolható összköltség (Ft)"]
["11. Immateriális javak",{"$f":"SUMIF('Tagi_2 részletező'!$B$10:$B$17,'Tagi_2 Összesítő'!A28,'Tagi_2 részletező'!$D$10:$D$17)","v":0},{"$f":"SUMIF('Tagi_2 részletező'!$B$10:$B$17,'Tagi_2 Összesítő'!A28,'Tagi_2 részletező'!$E$10:$E$17)","v":0},{"$f":"SUM(B28:C28)","v":0}]
["13. Műszaki berendezések, gépek",{"$f":"SUMIF('Tagi_2 részletező'!$B$10:$B$17,'Tagi_2 Összesítő'!A29,'Tagi_2 részletező'!$D$10:$D$17)","v":0},{"$f":"SUMIF('Tagi_2 részletező'!$B$10:$B$17,'Tagi_2 Összesítő'!A29,'Tagi_2 részletező'!$E$10:$E$17)","v":0},{"$f":"SUM(B29:C29)","v":0}]
["14. Egyéb berendezések, felszerelések",{"$f":"SUMIF('Tagi_2 részletező'!$B$10:$B$17,'Tagi_2 Összesítő'!A30,'Tagi_2 részletező'!$D$10:$D$17)","v":0},{"$f":"SUMIF('Tagi_2 részletező'!$B$10:$B$17,'Tagi_2 Összesítő'!A30,'Tagi_2 részletező'!$E$10:$E$17)","v":0},0]
["16. Beruházások, felújítások",{"$f":"SUMIF('Tagi_2 részletező'!$B$10:$B$17,'Tagi_2 Összesítő'!A31,'Tagi_2 részletező'!$D$10:$D$17)","v":0},{"$f":"SUMIF('Tagi_2 részletező'!$B$10:$B$17,'Tagi_2 Összesítő'!A31,'Tagi_2 részletező'!$E$10:$E$17)","v":0},0]
["51. Anyagköltség",{"$f":"SUMIF('Tagi_2 részletező'!$B$10:$B$17,'Tagi_2 Összesítő'!A32,'Tagi_2 részletező'!$D$10:$D$17)","v":0},{"$f":"SUMIF('Tagi_2 részletező'!$B$10:$B$17,'Tagi_2 Összesítő'!A32,'Tagi_2 részletező'!$E$10:$E$17)","v":0},0]
["52. Igénybe vett szolgáltatás",{"$f":"SUMIF('Tagi_2 részletező'!$B$10:$B$17,'Tagi_2 Összesítő'!A33,'Tagi_2 részletező'!$D$10:$D$17)","v":0},{"$f":"SUMIF('Tagi_2 részletező'!$B$10:$B$17,'Tagi_2 Összesítő'!A33,'Tagi_2 részletező'!$E$10:$E$17)","v":0},0]
["53. Egyéb szolgáltatás",{"$f":"SUMIF('Tagi_2 részletező'!$B$10:$B$17,'Tagi_2 Összesítő'!A34,'Tagi_2 részletező'!$D$10:$D$17)","v":0},{"$f":"SUMIF('Tagi_2 részletező'!$B$10:$B$17,'Tagi_2 Összesítő'!A34,'Tagi_2 részletező'!$E$10:$E$17)","v":0},0]
["54. Bérköltség",{"$f":"SUMIF('Tagi_2 részletező'!$B$10:$B$17,'Tagi_2 Összesítő'!A35,'Tagi_2 részletező'!$D$10:$D$17)","v":0},{"$f":"SUMIF('Tagi_2 részletező'!$B$10:$B$17,'Tagi_2 Összesítő'!A35,'Tagi_2 részletező'!$E$10:$E$17)","v":0},0]
["55. Személyi jellegű egyéb kifizetések",{"$f":"SUMIF('Tagi_2 részletező'!$B$10:$B$17,'Tagi_2 Összesítő'!A36,'Tagi_2 részletező'!$D$10:$D$17)","v":0},{"$f":"SUMIF('Tagi_2 részletező'!$B$10:$B$17,'Tagi_2 Összesítő'!A36,'Tagi_2 részletező'!$E$10:$E$17)","v":0},0]
["56. Bérjárulék",{"$f":"SUMIF('Tagi_2 részletező'!$B$10:$B$17,'Tagi_2 Összesítő'!A37,'Tagi_2 részletező'!$D$10:$D$17)","v":0},{"$f":"SUMIF('Tagi_2 részletező'!$B$10:$B$17,'Tagi_2 Összesítő'!A37,'Tagi_2 részletező'!$E$10:$E$17)","v":0},0]
["Felhalmozási összesen:",{"$f":"SUM(B28:B31)","v":0},{"$f":"SUM(C28:C31)","v":0},{"$f":"SUM(D28:D31)","v":0}]
[" Működési összesen",{"$f":"SUM(B32:B37)","v":0},{"$f":"SUM(C32:C37)","v":0},0]
["Felhalmozási és Működési Összesen:",{"$f":"SUM(B38:B39)","v":0},{"$f":"SUM(C38:C39)","v":0},0]
[]
["III. Támogatás és kifizetés ütemezés"]
["Mérföldkő száma és dátuma","A mérföldkőre elszámolni tervezett támogatás összege (Ft)","A mérföldkőre tervezett igényelt előleg összege (Ft)"]
["1. 20..év.hó.nap",{"$f":"B45+B46","v":0},{"$f":"C45+C46","v":0}]
["ebből működési"]
["ebből felhalmozási"]
["2. 20..év.hó.nap",{"$f":"B48+B49","v":0},{"$f":"C48+C49","v":0}]
["ebből működési"]
["ebből felhalmozási"]
["3. 20..év.hó.nap",{"$f":"B51+B52","v":0},{"$f":"C51+C52","v":0}]
["ebből működési"]
["ebből felhalmozási"]
["4. 20..év.hó.nap",{"$f":"B54+B55","v":0},{"$f":"C54+C55","v":0}]
["ebből működési"]
["ebből felhalmozási"]
["5. 20..év.hó.nap",{"$f":"B57+B58","v":0},{"$f":"C57+C58","v":0}]
["ebből működési"]
["ebből felhalmozási"]
["6. 20..év.hó.nap",{"$f":"B60+B61","v":0},{"$f":"C60+C61","v":0}]
["ebből működési"]
["ebből felhalmozási"]
["Összesen:",{"$f":"B44+B47+B50+B53+B56+B59","v":0},{"$f":"C44+C47+C50+C53+C56+C59","v":0}]
[]
["Tervezett kiadások ütemezése a tárgyévet követő éve(ek)ben (Ft)"]
[2021]
[2022]
[2023]
[2024]
[2025]
[]
[]
[]
["Dátum: 20.  hó   nap",null,"Cégszerű aláírás:","……………………………."]
[null,null,null,"<Név>"]
[null,null,null,"P.H."]

{"sheet":"Tagi_2 részletező","index":4,"n_rows":22,"n_cols":7,"rows_kept":22,"cut":false,"hidden":false,"merged":[[21,5,21,6],[0,0,0,6],[1,0,1,6],[7,0,7,6],[20,5,20,6],[3,1,3,3],[5,1,5,3],[4,1,4,3]]}
["Költségterv "]
["TAGI RÉSZLETES KÖLTSÉGTERV"]
[]
["Szerződés száma:",{"$f":"Összesítő!B4","v":"2020-3.1.X-ZFR-XXX-2020-000XX/2021-2.1.X-XX"}]
["Kötelezettségvállalási azonosító:","Z….."]
["Kedvezményezett neve:",{"$f":"Összesítő!B7","v":"<Tag2>"}]
[]
["Tervezett költségek tagi szinten"]
["Tevékenység neve","Költség kategória","Állami támogatás kategória","Támogatási összeg (Ft)","Saját forrás (Ft)","Elszámolható költség (Ft)","Támogatási százalék (%)"]
[{"$nulls":5},{"$f":"D10+E10","v":0},{"$f":"D10/F10","v":{"$error":"#DIV/0!"}}]
[{"$nulls":5},{"$f":"D11+E11","v":0},{"$f":"D11/F11","v":{"$error":"#DIV/0!"}}]
[{"$nulls":5},0,{"$error":"#DIV/0!"}]
[{"$nulls":5},0,{"$f":"D13/F13","v":{"$error":"#DIV/0!"}}]
[{"$nulls":5},0,{"$error":"#DIV/0!"}]
[{"$nulls":5},{"$f":"D15+E15","v":0},{"$error":"#DIV/0!"}]
[{"$nulls":5},0,{"$f":"D16/F16","v":{"$error":"#DIV/0!"}}]
[{"$nulls":5},0,{"$error":"#DIV/0!"}]
[null,null,"Összesen:",{"$f":"SUM(D10:D17)","v":0},{"$f":"SUM(E10:E17)","v":0},{"$f":"SUM(D18:E18)","v":0},{"$f":"D18/F18","v":{"$error":"#DIV/0!"}}]
[]
[]
["Dátum:","20 .   hó"," nap","P.H.","Cégszerű aláírás:","……………………………."]
[{"$nulls":5},"<Név>"]

{"sheet":"Tagi_3 Összesítő","index":5,"n_rows":75,"n_cols":5,"rows_kept":75,"cut":false,"hidden":false,"merged":[[41,0,41,2],[0,0,0,4],[1,0,1,4],[7,0,7,2],[8,0,8,1],[9,0,9,1],[10,0,10,1],[11,0,11,1],[13,0,13,4],[25,0,25,3],[3,1,3,3],[5,1,5,3],[4,1,4,3],[63,0,63,1],[72,3,72,4],[72,5,72,6],[73,3,73,4],[73,5,73,6]]}
["Költségterv "]
["TAGI ÖSSZESÍTŐ"]
[]
["Szerződés száma:",{"$f":"Összesítő!B4","v":"2020-3.1.X-ZFR-XXX-2020-000XX/2021-2.1.X-XX"}]
["Kötelezettségvállalási azonosító:","Z….."]
["Kedvezményezett neve:",{"$f":"Összesítő!B8","v":"<Tag3>"}]
[]
["I. Források "]
["1. Saját forrás (Ft):",null,{"$f":"SUM(C16:C22)","v":0}]
["2. Igényelt támogatás (Ft):",null,{"$f":"SUM(B16:B22)","v":0}]
["3. Elszámolható összköltség (Ft):",null,{"$f":"SUM(D16:D22)","v":0}]
["Átlagos támogatási intenzitás (%):",null,{"$f":"C10/C11","v":{"$error":"#DIV/0!"}}]
[]
["II. Állami támogatási kategórinkénti összesítő"]
["Állami támogatási kategória","Támogatási összeg (Ft)","Saját forrás (Ft)","Elszámolható összköltség (Ft)","Támogatási intenzitás (%)"]
["Kutatás fejlesztési projekthez nyújtott támogatás - Alkalmazott (ipari) kutatás",{"$f":"SUMIF('Tagi_3 Részletező'!$C$10:$C$17,'Tagi_3 Összesítő'!A16,'Tagi_3 Részletező'!$D$10:$D$17)","v":0},{"$f":"SUMIF('Tagi_3 Részletező'!$C$10:$C$17,'Tagi_3 Összesítő'!A16,'Tagi_3 Részletező'!$E$10:$E$17)","v":0},{"$f":"SUM(B16:C16)","v":0},{"$f":"B16/D16","v":{"$error":"#DIV/0!"}}]
["Kutatás fejlesztési projekthez nyújtott támogatás - Kísérleti fejlesztés",{"$f":"SUMIF('Tagi_3 Részletező'!$C$10:$C$17,'Tagi_3 Összesítő'!A17,'Tagi_3 Részletező'!$D$10:$D$17)","v":0},{"$f":"SUMIF('Tagi_3 Részletező'!$C$10:$C$17,'Tagi_3 Összesítő'!A17,'Tagi_3 Részletező'!$E$10:$E$17)","v":0},{"$f":"SUM(B17:C17)","v":0},{"$f":"B17/D17","v":{"$error":"#DIV/0!"}}]
["Megújuló energia termeléséhez nyújtott beruházási támogatás",{"$f":"SUMIF('Tagi_3 Részletező'!$C$10:$C$17,'Tagi_3 Összesítő'!A18,'Tagi_3 Részletező'!$D$10:$D$17)","v":0},{"$f":"SUMIF('Tagi_3 Részletező'!$C$10:$C$17,'Tagi_3 Összesítő'!A18,'Tagi_3 Részletező'!$E$10:$E$17)","v":0},{"$f":"SUM(B18:C18)","v":0},{"$error":"#DIV/0!"}]
["Helyi infrastruktúra fejlesztéséhez nyújtott beruházási támogatás ",{"$f":"SUMIF('Tagi_3 Részletező'!$C$10:$C$17,'Tagi_3 Összesítő'!A19,'Tagi_3 Részletező'!$D$10:$D$17)","v":0},{"$f":"SUMIF('Tagi_3 Részletező'!$C$10:$C$17,'Tagi_3 Összesítő'!A19,'Tagi_3 Részletező'!$E$10:$E$17)","v":0},0,{"$error":"#DIV/0!"}]
["Csekély összegű (de minimis)",{"$f":"SUMIF('Tagi_3 Részletező'!$C$10:$C$17,'Tagi_3 Összesítő'!A20,'Tagi_3 Részletező'!$D$10:$D$17)","v":0},{"$f":"SUMIF('Tagi_3 Részletező'!$C$10:$C$17,'Tagi_3 Összesítő'!A20,'Tagi_3 Részletező'!$E$10:$E$17)","v":0},0,{"$error":"#DIV/0!"}]
["Nem állami támogatás",{"$f":"SUMIF('Tagi_3 Részletező'!$C$10:$C$17,'Tagi_3 Összesítő'!A21,'Tagi_3 Részletező'!$D$10:$D$17)","v":0},{"$f":"SUMIF('Tagi_3 Részletező'!$C$10:$C$17,'Tagi_3 Összesítő'!A21,'Tagi_3 Részletező'!$E$10:$E$17)","v":0},0,{"$error":"#DIV/0!"}]
["Kutatás-fejlesztési projekthez nyújtott támogatás-Megvalósíthatósági tanulmány készítése",{"$f":"SUMIF('Tagi_3 Részletező'!$C$10:$C$17,'Tagi_3 Összesítő'!A22,'Tagi_3 Részletező'!$D$10:$D$17)","v":0},{"$f":"SUMIF('Tagi_3 Részletező'!$C$10:$C$17,'Tagi_3 Összesítő'!A22,'Tagi_3 Részletező'!$E$10:$E$17)","v":0},0,{"$error":"#DIV/0!"}]
["Összesen:",{"$f":"SUM(B16:B22)","v":0},{"$f":"SUM(C16:C22)","v":0},{"$f":"SUM(D16:D22)","v":0},{"$error":"#DIV/0!"}]
[]
[]
["II. Költségkategóriánkénti összesítő"]
["Költség kategória","Támogatási összeg (Ft)","Saját forrás (Ft)","Elszámolható összköltség (Ft)"]
["11. Immateriális javak",{"$f":"SUMIF('Tagi_3 Részletező'!$B$10:$B$17,'Tagi_3 Összesítő'!A28,'Tagi_3 Részletező'!$D$10:$D$17)","v":0},{"$f":"SUMIF('Tagi_3 Részletező'!$B$10:$B$17,'Tagi_3 Összesítő'!A28,'Tagi_3 Részletező'!$E$10:$E$17)","v":0},{"$f":"SUM(B28:C28)","v":0}]
["13. Műszaki berendezések, gépek",{"$f":"SUMIF('Tagi_3 Részletező'!$B$10:$B$17,'Tagi_3 Összesítő'!A29,'Tagi_3 Részletező'!$D$10:$D$17)","v":0},{"$f":"SUMIF('Tagi_3 Részletező'!$B$10:$B$17,'Tagi_3 Összesítő'!A29,'Tagi_3 Részletező'!$E$10:$E$17)","v":0},{"$f":"SUM(B29:C29)","v":0}]
["14. Egyéb berendezések, felszerelések",{"$f":"SUMIF('Tagi_3 Részletező'!$B$10:$B$17,'Tagi_3 Összesítő'!A30,'Tagi_3 Részletező'!$D$10:$D$17)","v":0},{"$f":"SUMIF('Tagi_3 Részletező'!$B$10:$B$17,'Tagi_3 Összesítő'!A30,'Tagi_3 Részletező'!$E$10:$E$17)","v":0},0]
["16. Beruházások, felújítások",{"$f":"SUMIF('Tagi_3 Részletező'!$B$10:$B$17,'Tagi_3 Összesítő'!A31,'Tagi_3 Részletező'!$D$10:$D$17)","v":0},{"$f":"SUMIF('Tagi_3 Részletező'!$B$10:$B$17,'Tagi_3 Összesítő'!A31,'Tagi_3 Részletező'!$E$10:$E$17)","v":0},0]
["51. Anyagköltség",{"$f":"SUMIF('Tagi_3 Részletező'!$B$10:$B$17,'Tagi_3 Összesítő'!A32,'Tagi_3 Részletező'!$D$10:$D$17)","v":0},{"$f":"SUMIF('Tagi_3 Részletező'!$B$10:$B$17,'Tagi_3 Összesítő'!A32,'Tagi_3 Részletező'!$E$10:$E$17)","v":0},0]
["52. Igénybe vett szolgáltatás",{"$f":"SUMIF('Tagi_3 Részletező'!$B$10:$B$17,'Tagi_3 Összesítő'!A33,'Tagi_3 Részletező'!$D$10:$D$17)","v":0},{"$f":"SUMIF('Tagi_3 Részletező'!$B$10:$B$17,'Tagi_3 Összesítő'!A33,'Tagi_3 Részletező'!$E$10:$E$17)","v":0},0]
["53. Egyéb szolgáltatás",{"$f":"SUMIF('Tagi_3 Részletező'!$B$10:$B$17,'Tagi_3 Összesítő'!A34,'Tagi_3 Részletező'!$D$10:$D$17)","v":0},{"$f":"SUMIF('Tagi_3 Részletező'!$B$10:$B$17,'Tagi_3 Összesítő'!A34,'Tagi_3 Részletező'!$E$10:$E$17)","v":0},0]
["54. Bérköltség",{"$f":"SUMIF('Tagi_3 Részletező'!$B$10:$B$17,'Tagi_3 Összesítő'!A35,'Tagi_3 Részletező'!$D$10:$D$17)","v":0},{"$f":"SUMIF('Tagi_3 Részletező'!$B$10:$B$17,'Tagi_3 Összesítő'!A35,'Tagi_3 Részletező'!$E$10:$E$17)","v":0},0]
["55. Személyi jellegű egyéb kifizetések",{"$f":"SUMIF('Tagi_3 Részletező'!$B$10:$B$17,'Tagi_3 Összesítő'!A36,'Tagi_3 Részletező'!$D$10:$D$17)","v":0},{"$f":"SUMIF('Tagi_3 Részletező'!$B$10:$B$17,'Tagi_3 Összesítő'!A36,'Tagi_3 Részletező'!$E$10:$E$17)","v":0},0]
["56. Bérjárulék",{"$f":"SUMIF('Tagi_3 Részletező'!$B$10:$B$17,'Tagi_3 Összesítő'!A37,'Tagi_3 Részletező'!$D$10:$D$17)","v":0},{"$f":"SUMIF('Tagi_3 Részletező'!$B$10:$B$17,'Tagi_3 Összesítő'!A37,'Tagi_3 Részletező'!$E$10:$E$17)","v":0},0]
["Felhalmozási összesen:",{"$f":"SUM(B28:B31)","v":0},{"$f":"SUM(C28:C31)","v":0},{"$f":"SUM(D28:D31)","v":0}]
[" Működési összesen",{"$f":"SUM(B32:B37)","v":0},{"$f":"SUM(C32:C37)","v":0},0]
["Felhalmozási és Működési Összesen:",{"$f":"SUM(B38:B39)","v":0},{"$f":"SUM(C38:C39)","v":0},0]
[]
["III. Támogatás és kifizetés ütemezés"]
["Mérföldkő száma és dátuma","A mérföldkőre elszámolni tervezett támogatás összege (Ft)","A mérföldkőre tervezett igényelt előleg összege (Ft)"]
["1. 20..év.hó.nap",{"$f":"B45+B46","v":0},{"$f":"C45+C46","v":0}]
["ebből működési"]
["ebből felhalmozási"]
["2. 20..év.hó.nap",{"$f":"B48+B49","v":0},{"$f":"C48+C49","v":0}]
["ebből működési"]
["ebből felhalmozási"]
["3. 20..év.hó.nap",{"$f":"B51+B52","v":0},{"$f":"C51+C52","v":0}]
["ebből működési"]
["ebből felhalmozási"]
["4. 20..év.hó.nap",{"$f":"B54+B55","v":0},{"$f":"C54+C55","v":0}]
["ebből működési"]
["ebből felhalmozási"]
["5. 20..év.hó.nap",{"$f":"B57+B58","v":0},{"$f":"C57+C58","v":0}]
["ebből működési"]
["ebből felhalmozási"]
["6. 20..év.hó.nap",{"$f":"B60+B61","v":0},{"$f":"C60+C61","v":0}]
["ebből működési"]
["ebből felhalmozási"]
["Összesen:",{"$f":"B44+B47+B50+B53+B56+B59","v":0},{"$f":"C44+C47+C50+C53+C56+C59","v":0}]
[]
["Tervezett kiadások ütemezése a tárgyévet követő éve(ek)ben (Ft)"]
[2021]
[2022]
[2023]
[2024]
[2024]
[]
[]
[]
["Dátum: 20 .  hó   nap",null,"Cégszerű aláírás:","……………………………."]
[null,null,null,"<Név>"]
[null,null,null,"P.H."]

{"sheet":"Tagi_3 Részletező","index":6,"n_rows":22,"n_cols":7,"rows_kept":22,"cut":false,"hidden":false,"merged":[[21,5,21,6],[0,0,0,6],[1,0,1,6],[7,0,7,6],[20,5,20,6],[3,1,3,3],[5,1,5,3],[4,1,4,3]]}
["Költségterv "]
["TAGI RÉSZLETES KÖLTSÉGTERV"]
[]
["Szerződés száma:",{"$f":"Összesítő!B4","v":"2020-3.1.X-ZFR-XXX-2020-000XX/2021-2.1.X-XX"}]
["Kötelezettségvállalási azonosító:","Z….."]
["Kedvezményezett neve:",{"$f":"Összesítő!B8","v":"<Tag3>"}]
[]
["Tervezett költségek tagi szinten"]
["Tevékenység neve","Költség kategória","Állami támogatás kategória","Támogatási összeg (Ft)","Saját forrás (Ft)","Elszámolható költség (Ft)","Támogatási százalék (%)"]
[{"$nulls":5},{"$f":"D10+E10","v":0},{"$f":"D10/F10","v":{"$error":"#DIV/0!"}}]
[{"$nulls":5},{"$f":"D11+E11","v":0},{"$f":"D11/F11","v":{"$error":"#DIV/0!"}}]
[{"$nulls":5},0,{"$error":"#DIV/0!"}]
[{"$nulls":5},0,{"$f":"D13/F13","v":{"$error":"#DIV/0!"}}]
[{"$nulls":5},0,{"$error":"#DIV/0!"}]
[{"$nulls":5},{"$f":"D15+E15","v":0},{"$error":"#DIV/0!"}]
[{"$nulls":5},0,{"$error":"#DIV/0!"}]
[{"$nulls":5},0,{"$f":"D17/F17","v":{"$error":"#DIV/0!"}}]
[null,null,"Összesen:",{"$f":"SUM(D10:D17)","v":0},{"$f":"SUM(E10:E17)","v":0},{"$f":"SUM(D18:E18)","v":0},{"$error":"#DIV/0!"}]
[]
[]
["Dátum:","20 .   hó"," nap","P.H.","Cégszerű aláírás:","……………………………."]
[{"$nulls":5},"<Név>"]

{"sheet":"Tagi_4 Összesítő","index":7,"n_rows":75,"n_cols":5,"rows_kept":75,"cut":false,"hidden":false,"merged":[[41,0,41,2],[0,0,0,4],[1,0,1,4],[7,0,7,2],[8,0,8,1],[9,0,9,1],[10,0,10,1],[11,0,11,1],[13,0,13,4],[25,0,25,3],[3,1,3,3],[5,1,5,3],[4,1,4,3],[63,0,63,1],[72,3,72,4],[72,5,72,6],[73,3,73,4],[73,5,73,6]]}
["Költségterv "]
["TAGI ÖSSZESÍTŐ"]
[]
["Szerződés száma:",{"$f":"Összesítő!B4","v":"2020-3.1.X-ZFR-XXX-2020-000XX/2021-2.1.X-XX"}]
["Kötelezettségvállalási azonosító:","Z….."]
["Kedvezményezett neve:",{"$f":"Összesítő!B9","v":"<Tag4>"}]
[]
["I. Források "]
["1. Saját forrás (Ft):",null,{"$f":"SUM(C16:C22)","v":0}]
["2. Igényelt támogatás (Ft):",null,{"$f":"SUM(B16:B22)","v":0}]
["3. Elszámolható összköltség (Ft):",null,{"$f":"SUM(D16:D22)","v":0}]
["Átlagos támogatási intenzitás (%):",null,0]
[]
["II. Állami támogatási kategórinkénti összesítő"]
["Állami támogatási kategória","Támogatási összeg (Ft)","Saját forrás (Ft)","Elszámolható összköltség (Ft)","Támogatási intenzitás (%)"]
["Kutatás fejlesztési projekthez nyújtott támogatás - Alkalmazott (ipari) kutatás",{"$f":"SUMIF('Tagi_4 Részletező'!$C$10:$C$18,'Tagi_4 Összesítő'!A16,'Tagi_4 Részletező'!$D$10:$D$18)","v":0},{"$f":"SUMIF('Tagi_4 Részletező'!$C$10:$C$18,'Tagi_4 Összesítő'!A16,'Tagi_4 Részletező'!$E$10:$E$18)","v":0},{"$f":"SUM(B16:C16)","v":0},{"$f":"B16/D16","v":{"$error":"#DIV/0!"}}]
["Kutatás fejlesztési projekthez nyújtott támogatás - Kísérleti fejlesztés",{"$f":"SUMIF('Tagi_4 Részletező'!$C$10:$C$18,'Tagi_4 Összesítő'!A17,'Tagi_4 Részletező'!$D$10:$D$18)","v":0},{"$f":"SUMIF('Tagi_4 Részletező'!$C$10:$C$18,'Tagi_4 Összesítő'!A17,'Tagi_4 Részletező'!$E$10:$E$18)","v":0},{"$f":"SUM(B17:C17)","v":0},{"$f":"B17/D17","v":{"$error":"#DIV/0!"}}]
["Megújuló energia termeléséhez nyújtott beruházási támogatás",{"$f":"SUMIF('Tagi_4 Részletező'!$C$10:$C$18,'Tagi_4 Összesítő'!A18,'Tagi_4 Részletező'!$D$10:$D$18)","v":0},{"$f":"SUMIF('Tagi_4 Részletező'!$C$10:$C$18,'Tagi_4 Összesítő'!A18,'Tagi_4 Részletező'!$E$10:$E$18)","v":0},{"$f":"SUM(B18:C18)","v":0},{"$error":"#DIV/0!"}]
["Helyi infrastruktúra fejlesztéséhez nyújtott beruházási támogatás ",{"$f":"SUMIF('Tagi_4 Részletező'!$C$10:$C$18,'Tagi_4 Összesítő'!A19,'Tagi_4 Részletező'!$D$10:$D$18)","v":0},{"$f":"SUMIF('Tagi_4 Részletező'!$C$10:$C$18,'Tagi_4 Összesítő'!A19,'Tagi_4 Részletező'!$E$10:$E$18)","v":0},0,{"$error":"#DIV/0!"}]
["Csekély összegű (de minimis)",{"$f":"SUMIF('Tagi_4 Részletező'!$C$10:$C$18,'Tagi_4 Összesítő'!A20,'Tagi_4 Részletező'!$D$10:$D$18)","v":0},{"$f":"SUMIF('Tagi_4 Részletező'!$C$10:$C$18,'Tagi_4 Összesítő'!A20,'Tagi_4 Részletező'!$E$10:$E$18)","v":0},0,{"$error":"#DIV/0!"}]
["Nem állami támogatás",{"$f":"SUMIF('Tagi_4 Részletező'!$C$10:$C$18,'Tagi_4 Összesítő'!A21,'Tagi_4 Részletező'!$D$10:$D$18)","v":0},{"$f":"SUMIF('Tagi_4 Részletező'!$C$10:$C$18,'Tagi_4 Összesítő'!A21,'Tagi_4 Részletező'!$E$10:$E$18)","v":0},0,{"$error":"#DIV/0!"}]
["Kutatás-fejlesztési projekthez nyújtott támogatás-Megvalósíthatósági tanulmány készítése",{"$f":"SUMIF('Tagi_4 Részletező'!$C$10:$C$18,'Tagi_4 Összesítő'!A22,'Tagi_4 Részletező'!$D$10:$D$18)","v":0},{"$f":"SUMIF('Tagi_4 Részletező'!$C$10:$C$18,'Tagi_4 Összesítő'!A22,'Tagi_4 Részletező'!$E$10:$E$18)","v":0},0,{"$error":"#DIV/0!"}]
["Összesen:",{"$f":"SUM(B16:B22)","v":0},{"$f":"SUM(C16:C22)","v":0},0,{"$error":"#DIV/0!"}]
[]
[]
["II. Költségkategóriánkénti összesítő"]
["Költség kategória","Támogatási összeg (Ft)","Saját forrás (Ft)","Elszámolható összköltség (Ft)"]
["11. Immateriális javak",{"$f":"SUMIF('Tagi_4 Részletező'!$B$10:$B$18,'Tagi_4 Összesítő'!A28,'Tagi_4 Részletező'!$D$10:$D$18)","v":0},{"$f":"SUMIF('Tagi_4 Részletező'!$B$10:$B$18,'Tagi_4 Összesítő'!A28,'Tagi_4 Részletező'!$E$10:$E$18)","v":0},{"$f":"SUM(B28:C28)","v":0}]
["13. Műszaki berendezések, gépek",{"$f":"SUMIF('Tagi_4 Részletező'!$B$10:$B$18,'Tagi_4 Összesítő'!A29,'Tagi_4 Részletező'!$D$10:$D$18)","v":0},{"$f":"SUMIF('Tagi_4 Részletező'!$B$10:$B$18,'Tagi_4 Összesítő'!A29,'Tagi_4 Részletező'!$E$10:$E$18)","v":0},{"$f":"SUM(B29:C29)","v":0}]
["14. Egyéb berendezések, felszerelések",{"$f":"SUMIF('Tagi_4 Részletező'!$B$10:$B$18,'Tagi_4 Összesítő'!A30,'Tagi_4 Részletező'!$D$10:$D$18)","v":0},{"$f":"SUMIF('Tagi_4 Részletező'!$B$10:$B$18,'Tagi_4 Összesítő'!A30,'Tagi_4 Részletező'!$E$10:$E$18)","v":0},0]
["16. Beruházások, felújítások",{"$f":"SUMIF('Tagi_4 Részletező'!$B$10:$B$18,'Tagi_4 Összesítő'!A31,'Tagi_4 Részletező'!$D$10:$D$18)","v":0},{"$f":"SUMIF('Tagi_4 Részletező'!$B$10:$B$18,'Tagi_4 Összesítő'!A31,'Tagi_4 Részletező'!$E$10:$E$18)","v":0},0]
["51. Anyagköltség",{"$f":"SUMIF('Tagi_4 Részletező'!$B$10:$B$18,'Tagi_4 Összesítő'!A32,'Tagi_4 Részletező'!$D$10:$D$18)","v":0},{"$f":"SUMIF('Tagi_4 Részletező'!$B$10:$B$18,'Tagi_4 Összesítő'!A32,'Tagi_4 Részletező'!$E$10:$E$18)","v":0},0]
["52. Igénybe vett szolgáltatás",{"$f":"SUMIF('Tagi_4 Részletező'!$B$10:$B$18,'Tagi_4 Összesítő'!A33,'Tagi_4 Részletező'!$D$10:$D$18)","v":0},{"$f":"SUMIF('Tagi_4 Részletező'!$B$10:$B$18,'Tagi_4 Összesítő'!A33,'Tagi_4 Részletező'!$E$10:$E$18)","v":0},0]
["53. Egyéb szolgáltatás",{"$f":"SUMIF('Tagi_4 Részletező'!$B$10:$B$18,'Tagi_4 Összesítő'!A34,'Tagi_4 Részletező'!$D$10:$D$18)","v":0},{"$f":"SUMIF('Tagi_4 Részletező'!$B$10:$B$18,'Tagi_4 Összesítő'!A34,'Tagi_4 Részletező'!$E$10:$E$18)","v":0},0]
["54. Bérköltség",{"$f":"SUMIF('Tagi_4 Részletező'!$B$10:$B$18,'Tagi_4 Összesítő'!A35,'Tagi_4 Részletező'!$D$10:$D$18)","v":0},{"$f":"SUMIF('Tagi_4 Részletező'!$B$10:$B$18,'Tagi_4 Összesítő'!A35,'Tagi_4 Részletező'!$E$10:$E$18)","v":0},0]
["55. Személyi jellegű egyéb kifizetések",{"$f":"SUMIF('Tagi_4 Részletező'!$B$10:$B$18,'Tagi_4 Összesítő'!A36,'Tagi_4 Részletező'!$D$10:$D$18)","v":0},{"$f":"SUMIF('Tagi_4 Részletező'!$B$10:$B$18,'Tagi_4 Összesítő'!A36,'Tagi_4 Részletező'!$E$10:$E$18)","v":0},0]
["56. Bérjárulék",{"$f":"SUMIF('Tagi_4 Részletező'!$B$10:$B$18,'Tagi_4 Összesítő'!A37,'Tagi_4 Részletező'!$D$10:$D$18)","v":0},{"$f":"SUMIF('Tagi_4 Részletező'!$B$10:$B$18,'Tagi_4 Összesítő'!A37,'Tagi_4 Részletező'!$E$10:$E$18)","v":0},0]
["Felhalmozási összesen:",{"$f":"SUM(B28:B31)","v":0},{"$f":"SUM(C28:C31)","v":0},{"$f":"SUM(D28:D31)","v":0}]
[" Működési összesen",{"$f":"SUM(B32:B37)","v":0},{"$f":"SUM(C32:C37)","v":0},0]
["Felhalmozási és Működési Összesen:",{"$f":"SUM(B38:B39)","v":0},{"$f":"SUM(C38:C39)","v":0},0]
[]
["III. Támogatás és kifizetés ütemezés"]
["Mérföldkő száma és dátuma","A mérföldkőre elszámolni tervezett támogatás összege (Ft)","A mérföldkőre tervezett igényelt előleg összege (Ft)"]
["1. 20..év.hó.nap",{"$f":"B45+B46","v":0},{"$f":"C45+C46","v":0}]
["ebből működési"]
["ebből felhalmozási"]
["2. 20..év.hó.nap",{"$f":"B48+B49","v":0},{"$f":"C48+C49","v":0}]
["ebből működési"]
["ebből felhalmozási"]
["3. 20..év.hó.nap",{"$f":"B51+B52","v":0},{"$f":"C51+C52","v":0}]
["ebből működési"]
["ebből felhalmozási"]
["4. 20..év.hó.nap",{"$f":"B54+B55","v":0},{"$f":"C54+C55","v":0}]
["ebből működési"]
["ebből felhalmozási"]
["5. 20..év.hó.nap",{"$f":"B57+B58","v":0},{"$f":"C57+C58","v":0}]
["ebből működési"]
["ebből felhalmozási"]
["6. 20..év.hó.nap",{"$f":"B60+B61","v":0},{"$f":"C60+C61","v":0}]
["ebből működési"]
["ebből felhalmozási"]
["Összesen:",{"$f":"B44+B47+B50+B53+B56+B59","v":0},{"$f":"C44+C47+C50+C53+C56+C59","v":0}]
[]
["Tervezett kiadások ütemezése a tárgyévet követő éve(ek)ben (Ft)"]
[2021]
[2022]
[2023]
[2024]
[2025]
[]
[]
[]
["Dátum: 20 .  hó   nap",null,"Cégszerű aláírás:","……………………………."]
[null,null,null,"<Név>"]
[null,null,null,"P.H."]

{"sheet":"Tagi_4 Részletező","index":8,"n_rows":23,"n_cols":7,"rows_kept":23,"cut":false,"hidden":false,"merged":[[22,5,22,6],[0,0,0,6],[1,0,1,6],[7,0,7,6],[21,5,21,6],[3,1,3,3],[5,1,5,3],[4,1,4,3]]}
["Költségterv "]
["TAGI RÉSZLETES KÖLTSÉGTERV"]
[]
["Szerződés száma:",{"$f":"Összesítő!B4","v":"2020-3.1.X-ZFR-XXX-2020-000XX/2021-2.1.X-XX"}]
["Kötelezettségvállalási azonosító:","Z….."]
["Kedvezményezett neve:",{"$f":"Összesítő!B9","v":"<Tag4>"}]
[]
["Tervezett költségek tagi szinten"]
["Tevékenység neve","Költség kategória","Állami támogatás kategória","Támogatási összeg (Ft)","Saját forrás (Ft)","Elszámolható költség (Ft)","Támogatási százalék (%)"]
[{"$nulls":5},{"$f":"D10+E10","v":0},{"$f":"D10/F10","v":{"$error":"#DIV/0!"}}]
[{"$nulls":5},{"$f":"D11+E11","v":0},{"$f":"D11/F11","v":{"$error":"#DIV/0!"}}]
[{"$nulls":5},0,{"$error":"#DIV/0!"}]
[{"$nulls":5},0,{"$error":"#DIV/0!"}]
[{"$nulls":5},0,{"$error":"#DIV/0!"}]
[{"$nulls":5},0,{"$error":"#DIV/0!"}]
[{"$nulls":5},0,{"$f":"D16/F16","v":{"$error":"#DIV/0!"}}]
[{"$nulls":5},0,{"$error":"#DIV/0!"}]
[{"$nulls":5},0,{"$error":"#DIV/0!"}]
[null,null,"Összesen:",{"$f":"SUM(D10:D18)","v":0},{"$f":"SUM(E10:E18)","v":0},{"$f":"SUM(F10:F18)","v":0},{"$f":"D19/F19","v":{"$error":"#DIV/0!"}}]
[]
[]
["Dátum:","20…… . …………hó","…………nap","P.H.","Cégszerű aláírás:","……………………………."]
[{"$nulls":5},"<Név>"]

{"sheet":"segédlap","index":9,"n_rows":10,"n_cols":5,"rows_kept":10,"cut":false,"hidden":true,"merged":[]}
["Alkalmazott (ipari) kutatás",null,"11. Immateriális javak",null,"Kutatás fejlesztési projekthez nyújtott támogatás - Alkalmazott (ipari) kutatás"]
["Kísérleti fejlesztés",null,"13. Műszaki berendezések, gépek",null,"Kutatás fejlesztési projekthez nyújtott támogatás - Kísérleti fejlesztés"]
["Eszközbeszerzés",null,"14. Egyéb berendezések, felszerelések",null,"Megújuló energia termeléséhez nyújtott beruházási támogatás"]
["Immateriális javak beszerzése",null,"16. Beruházások, felújítások",null,"Helyi infrastruktúra fejlesztéséhez nyújtott beruházási támogatás "]
["Építés, beruházás",null,"51. Anyagköltség",null,"Csekély összegű (de minimis)"]
[" Koordináció",null,"52. Igénybe vett szolgáltatás",null,"Nem állami támogatás"]
[" Közbeszerzés",null,"53. Egyéb szolgáltatás",null,"Kutatás-fejlesztési projekthez nyújtott támogatás-Megvalósíthatósági tanulmány készítése"]
["Nem állami támogatás",null,"54. Bérköltség"]
["Megvalósíthatósági tanulmány elkészítése",null,"55. Személyi jellegű egyéb kifizetések"]
[null,null,"56. Bérjárulék"]